bitfinex/quotes_ETHUSD_20260106
["timestamp","ask_amount","ask_price","bid_price","bid_amount"]
[1767717916993,0.801,3235.6,3234.5,0.002]
[1767717917192,0.70842204,3235.5,3233.8,3.09233548]
[1767717917411,0.70842204,3235.5,3234.1,3.09396811]
[1767717917580,0.70842204,3235.5,3234.1,0.002]
[1767717918011,0.0092862,3235.3,3234.1,0.002]
[1767717918313,0.70842204,3235.5,3234.1,0.002]
[1767717918517,3.09981441,3235.7,3234.1,0.95867076]
[1767717918831,0.0092862,3235.7,3234.1,0.95867076]
[1767717919040,3.09980822,3235.7,3234.1,0.95867076]
[1767717919214,6.19033024,3235.7,3234.1,0.95867076]
[1767717919527,0.0092862,3235.5,3234.1,0.0329205]
[1767717919725,0.32019835,3235.5,3234.1,0.0329205]
[1767717920226,0.32019835,3235.5,3234.2,9.27586419]
[1767717920397,0.0092862,3235.5,3234.2,9.27586419]
[1767717920584,3.09981569,3235.7,3234.3,0.03091859]
[1767717920784,0.8102862,3235.7,3234.3,0.03091859]
[1767717921005,0.0092862,3236.3,3234.3,0.95666885]
[1767717921311,0.801,3236.5,3234.3,0.92575026]
[1767717921512,0.82157564,3236.5,3234.5,0.92575026]
[1767717921712,0.801,3236.5,3234.7,0.92575026]
[1767717921913,0.0092862,3236.7,3234.9,0.92575026]
[1767717922113,0.8102862,3236.7,3235.3,0.92575026]
[1767717922285,0.02057564,3236.6,3235.3,0.92575026]
[1767717922704,0.0092862,3236.9,3235.3,0.92575026]
[1767717922906,0.801,3236.8,3235.3,0.92575026]
[1767717923108,0.801,3236.8,3235.4,1.3598827]
[1767717923315,0.02057564,3236.7,3235.4,1.32897463]
[1767717923616,0.801,3236.9,3235.4,1.32897463]
[1767717923918,0.801,3236.9,3235.1,3.09107763]
[1767717923919,0.90322383,3236.0,3235.1,3.09107763]
[1767717924219,0.82157564,3236.6,3235.0,6.1823802]
[1767717924418,0.82157564,3236.6,3235.0,6.21329209]
[1767717924603,1.21858986,3236.6,3235.1,0.74481518]
[1767717925007,0.39701422,3236.6,3235.1,0.74481518]
[1767717925200,0.39701422,3236.6,3235.1,1.6396545]
[1767717925399,0.02057564,3236.5,3235.1,1.6396545]
[1767717925605,0.02057564,3236.5,3234.6,0.807]
[1767717925606,0.90322383,3236.5,3234.9,3.09128179]
[1767717925801,0.90322383,3236.3,3234.8,3.09134676]
[1767717926022,0.02986184,3236.4,3234.1,0.002]
[1767717926023,0.90322383,3235.9,3234.1,0.002]
[1767717926321,0.90322383,3235.9,3234.1,0.92775026]
[1767717926322,3.09035031,3235.9,3234.1,0.92775026]
[1767717926508,0.02057564,3236.4,3234.5,0.807]
[1767717926709,3.91144052,3236.4,3234.6,0.92575026]
[1767717926909,7.90452923,3236.4,3234.6,0.92575026]
[1767717927115,7.90452923,3236.4,3234.4,0.002]
[1767717927116,0.91251003,3236.2,3234.4,0.002]
[1767717927307,0.02057564,3236.1,3234.4,0.002]
[1767717927821,3.08986488,3236.4,3234.5,0.93840816]
[1767717927996,0.21027247,3236.5,3234.5,0.93840816]
[1767717928198,0.02057564,3236.4,3234.7,0.92575026]
[1767717928445,0.92379947,3236.4,3234.8,0.807]
[1767717928621,0.93308567,3236.4,3234.6,6.18314474]
[1767717928840,0.91251003,3236.2,3234.5,3.89865466]
[1767717928995,0.91251003,3236.2,3234.4,3.0936926]
[1767717928996,0.91251003,3236.0,3234.4,3.0936926]
[1767717929196,0.92379947,3235.9,3234.5,3.09166104]
[1767717929443,0.92379947,3235.9,3234.5,6.18332899]
[1767717929732,0.90322383,3235.9,3234.5,6.18332899]
[1767717930227,0.802,3235.8,3234.5,6.80186189]
[1767717930438,0.02057564,3235.7,3234.5,3.09166104]
[1767717930910,0.802,3235.7,3234.5,9.27499694]
[1767717931100,0.802,3235.7,3234.5,6.18332899]
[1767717931298,0.802,3235.9,3234.5,9.27499694]
[1767717931497,0.802,3235.9,3234.5,6.18332899]
[1767717931721,0.802,3235.9,3234.5,7.11104126]
[1767717932021,0.802,3235.9,3234.5,10.20270921]
[1767717932237,3.29613047,3236.4,3234.5,14.28907999]
[1767717932542,0.802,3236.2,3234.5,11.19741204]
[1767717932745,0.20621145,3236.4,3234.6,0.99470283]
[1767717932951,0.20621145,3236.4,3234.7,1.428908]
[1767717932952,0.802,3236.3,3234.7,1.428908]
[1767717933414,0.20621145,3236.4,3234.8,0.99470283]
[1767717933742,0.02057564,3236.3,3234.8,0.99470283]
[1767717934111,0.20621145,3236.4,3234.8,0.99470283]
[1767717934312,0.20621145,3236.4,3235.1,0.99470283]
[1767717934525,3.29610411,3236.4,3235.2,1.83382731]
[1767717934725,0.001,3236.1,3235.2,1.83382731]
[1767717935035,0.001,3236.1,3235.3,0.99470283]
[1767717936245,0.001,3236.1,3235.3,6.18180694]
[1767717937139,0.001,3236.1,3235.3,10.26741324]
[1767717937316,0.001,3236.1,3235.4,1.21012406]
[1767717937836,0.001,3236.1,3235.5,0.03090712]
[1767717938612,0.001,3236.1,3235.6,6.18123376]
[1767717938816,0.0092862,3237.4,3235.6,9.27185064]
[1767717939119,0.802,3237.2,3235.7,0.03090521]
[1767717939306,0.802,3237.2,3235.8,0.93027559]
[1767717940137,7.17168697,3237.4,3235.8,0.93027559]
[1767717940318,0.802,3237.3,3235.8,0.93027559]
[1767717940640,0.802,3237.3,3236.0,10.26540738]
[1767717940835,0.802,3237.3,3236.0,7.17517253]
[1767717941152,0.802,3237.3,3236.1,0.71751725]
[1767717942149,0.37768233,3237.7,3236.1,0.71751725]
[1767717942448,0.37768233,3237.7,3236.1,1.71222008]
[1767717942449,0.801,3237.6,3236.1,1.71222008]
[1767717942613,0.801,3237.6,3236.2,9.27013161]
[1767717942813,0.20762191,3237.7,3236.3,0.99470283]
[1767717943132,0.20762191,3237.7,3236.5,0.99470283]
[1767717943940,0.20762191,3237.7,3236.4,2.14248783]
[1767717944109,0.20762191,3237.7,3236.5,0.99470283]
[1767717944317,1.01433449,3237.6,3236.4,1.33548783]
[1767717944516,0.73992628,3237.5,3236.2,6.18008774]
[1767717945142,3.82874237,3237.5,3236.2,6.18681755]
[1767717945438,0.801,3237.4,3236.2,6.18008774]
[1767717945645,0.801,3237.4,3236.2,6.20219642]
[1767717946012,0.801,3237.4,3236.2,6.18008774]
[1767717946217,0.46297424,3237.3,3236.2,6.18008774]
[1767717946414,0.46297424,3237.3,3236.2,3.09004387]
[1767717946614,0.46297424,3237.3,3236.2,6.18008774]
[1767717947059,0.001,3237.4,3236.2,10.27859673]
[1767717947267,0.001,3237.4,3236.2,7.17479057]
[1767717947468,0.001,3237.4,3236.2,10.26483444]
[1767717947760,0.001,3237.4,3236.2,7.17479057]
[1767717947965,0.001,3237.4,3236.2,10.26483444]
[1767717948161,0.001,3237.4,3236.3,2.898938]
[1767717948361,0.001,3237.4,3236.4,0.01376144]
[1767717949020,0.001,3237.4,3236.5,6.1795149]
[1767717949260,0.001,3237.4,3236.5,3.08975745]
[1767717949557,0.001,3237.4,3236.4,6.17967219]
[1767717949730,0.001,3237.4,3236.4,3.70916439]
[1767717949930,0.001,3237.4,3236.4,3.08981927]
[1767717950158,0.001,3237.4,3236.4,6.17967219]
[1767717950658,0.98547265,3237.4,3236.4,3.08985292]
[1767717950847,0.98547265,3237.4,3235.9,0.0309033]
[1767717951044,4.07346656,3237.3,3235.9,3.09033035]
[1767717951352,0.82157564,3237.2,3235.9,6.97880123]
[1767717952043,0.801,3237.2,3236.0,0.00649046]
[1767717952243,0.801,3237.2,3236.0,0.01374313]
[1767717952442,0.801,3237.2,3235.9,10.06913158]
[1767717952645,0.17854727,3237.1,3235.9,6.97880123]
[1767717953344,0.20755876,3237.4,3236.0,0.00652928]
[1767717953544,0.20755876,3237.4,3236.0,1.00123211]
[1767717953749,0.20755876,3237.4,3236.0,1.02560517]
[1767717954233,6.385371,3237.4,3236.0,1.02560517]
[1767717954432,7.36984365,3237.4,3235.9,6.1806607]
[1767717954660,0.98447265,3237.2,3235.9,3.09033035]
[1767717954856,0.02057564,3237.1,3235.9,3.09033035]
[1767717955057,0.02057564,3237.1,3235.7,4.08519116]
[1767717955262,3.10985262,3237.1,3235.6,6.18123376]
[1767717955557,0.39106918,3237.0,3235.7,0.99470283]
[1767717955729,0.801,3237.2,3235.8,1.02370101]
[1767717955929,4.07351171,3237.3,3235.8,1.02370101]
[1767717956355,0.801,3237.2,3235.8,1.02370101]
[1767717957353,3.89010223,3237.2,3235.9,6.1806607]
[1767717957557,0.801,3237.2,3235.9,6.1806607]
[1767717957751,0.48745127,3237.1,3235.9,7.2072408]
[1767717957953,3.8900929,3237.2,3235.9,7.2072408]
[1767717958138,0.96009296,3237.1,3235.9,3.09033035]
[1767717958337,0.96009296,3237.1,3235.7,3.09049728]
[1767717958338,0.96009296,3237.1,3235.7,3.09043623]
[1767717958560,0.96937916,3237.1,3235.6,3.89654098]
[1767717958738,0.96937916,3237.1,3236.2,0.002]
[1767717958933,0.96937916,3237.1,3235.8,3.09042586]
[1767717959129,0.93951732,3236.9,3235.7,0.03090521]
[1767717959330,0.93951732,3236.9,3235.9,0.002]
[1767717959532,0.93951732,3236.8,3235.9,0.002]
[1767717959835,0.93951732,3236.8,3235.4,3.08973969]
[1767717960058,0.96009296,3236.8,3235.4,3.08973969]
[1767717960271,0.71481876,3236.7,3235.4,6.18054762]
[1767717961051,0.801,3236.6,3235.4,6.18054762]
[1767717961359,0.71481876,3236.7,3235.5,6.18135774]
[1767717961561,0.93951732,3236.8,3235.5,6.18135774]
[1767717961732,0.96785876,3236.6,3235.2,0.03090999]
[1767717961937,0.96785876,3236.6,3235.2,3.09095804]
[1767717962154,0.96785876,3236.4,3234.7,0.81964729]
[1767717962354,0.801,3236.3,3234.8,0.93050016]
[1767717962533,0.96785876,3236.0,3234.4,0.93250016]
[1767717962731,0.0092862,3235.5,3234.4,0.002]
[1767717963054,0.0092862,3235.7,3234.4,3.09375701]
[1767717963358,0.801,3235.6,3234.4,0.002]
[1767717963549,3.0904549,3235.8,3234.4,0.002]
[1767717963866,1.14474464,3236.5,3234.6,0.93050016]
[1767717964073,4.85862998,3236.5,3234.7,0.96141492]
[1767717964363,0.96785876,3236.4,3234.4,0.002]
[1767717964569,0.97714496,3236.4,3234.5,0.03091667]
[1767717964733,0.96785876,3236.0,3234.4,0.002]
[1767717965063,0.0092862,3235.7,3234.4,0.002]
[1767717965566,3.89261688,3235.6,3234.4,0.002]
[1767717965764,1.19219031,3235.5,3234.4,0.002]
[1767717965997,0.39019031,3235.5,3234.4,0.002]
[1767717966168,1.19219031,3235.5,3234.4,0.002]
[1767717966345,0.39019031,3235.5,3234.4,0.002]
[1767717966537,0.802,3236.2,3234.6,0.93050016]
[1767717966736,0.96785876,3236.1,3234.4,0.002]
[1767717967141,0.0092862,3235.8,3234.4,0.002]
[1767717967552,6.18104274,3235.7,3234.4,0.002]
[1767717967762,1.42103289,3235.6,3234.4,0.002]
[1767717969570,3.0907124,3235.5,3234.4,0.002]
[1767717969774,4.67754736,3235.6,3234.4,0.002]
[1767717969980,1.58689165,3235.6,3234.4,0.002]
[1767717970150,0.802,3235.5,3234.4,0.002]
[1767717970483,0.96785876,3235.3,3234.4,0.002]
[1767717970686,0.96785876,3235.0,3234.0,0.002]
[1767717970885,0.96785876,3234.8,3232.7,0.807]
[1767717971179,0.96785876,3234.8,3233.3,3.09272565]
[1767717971379,0.96785876,3234.8,3233.5,3.09255754]
[1767717971679,0.96785876,3234.2,3232.9,0.002]
[1767717971880,0.97714496,3234.0,3232.9,0.002]
[1767717972177,0.97714496,3234.0,3232.8,0.005]
[1767717972778,0.97714496,3234.0,3232.8,3.09829003]
[1767717972958,0.27267077,3234.4,3232.9,0.03093198]
[1767717973163,0.802,3234.3,3232.8,6.50141276]
[1767717973571,3.09195473,3234.2,3232.8,6.50141276]
[1767717973774,0.802,3234.3,3232.8,6.50141276]
[1767717973970,0.802,3234.3,3232.8,7.43191292]
[1767717974161,0.27267077,3234.4,3233.0,0.93050016]
[1767717974361,0.27267077,3234.4,3233.2,0.93050016]
[1767717974561,0.27267077,3234.4,3233.3,0.93851555]
[1767717975284,0.27267077,3234.4,3233.3,0.93050016]
[1767717975583,0.001,3235.3,3233.5,0.93050016]
[1767717975785,0.001,3235.3,3233.6,1.33013791]
[1767717975955,0.02157564,3235.3,3233.6,1.33013791]
[1767717976158,0.001,3235.3,3233.6,2.13713791]
[1767717976474,0.001,3235.3,3233.7,0.93050016]
[1767717977694,0.21049216,3235.6,3234.6,0.93050016]
[1767717977871,0.21049216,3235.6,3234.7,0.807]
[1767717978574,0.21049216,3235.6,3234.7,1.73750016]
[1767717978781,0.21049216,3235.6,3234.8,0.17375002]
[1767717978976,1e-08,3235.6,3234.8,0.17375002]
[1767717979487,1e-08,3235.6,3234.8,1.10425018]
[1767717979790,1e-08,3235.6,3234.9,7.11307148]
[1767717981188,1e-08,3235.6,3234.9,4.82878582]
[1767717981391,1e-08,3235.6,3234.3,0.93050016]
[1767717981688,1e-08,3235.6,3234.2,0.807]
[1767717981893,1e-08,3235.6,3233.9,6.18443108]
[1767717982074,1e-08,3235.6,3234.1,0.807]
[1767717982255,1e-08,3235.6,3234.2,0.93050016]
[1767717982459,1e-08,3235.6,3234.3,0.17375002]
[1767717982895,1e-08,3235.6,3234.3,0.98075002]
[1767717983094,0.96785877,3235.6,3234.3,0.807]
[1767717983786,1e-08,3235.6,3234.4,6.18352708]
[1767717984757,1e-08,3235.6,3234.9,0.002]
[1767717986896,0.0302,3236.1,3234.9,0.93250016]
[1767717987085,0.0302,3236.1,3234.9,1.73950016]
[1767717987398,0.0302,3236.1,3235.0,1.10445018]
[1767717987782,3.12036524,3236.1,3235.0,4.19559703]
[1767717987982,0.02057564,3236.0,3234.9,0.002]
[1767717988186,0.02057564,3236.0,3234.9,3.9002221]
[1767717988387,6.21053048,3236.1,3234.9,3.09325177]
[1767717988565,0.0302,3236.1,3235.0,3.09118851]
[1767717988763,0.0302,3236.1,3234.9,3.0932665]
[1767717988970,0.0302,3236.1,3235.0,3.09115428]
[1767717989168,0.0302,3236.1,3235.0,6.18234438]
[1767717989369,0.0302,3236.1,3235.0,3.09115428]
[1767717989705,6.21056092,3236.1,3234.9,3.40257336]
[1767717990171,3.12038046,3236.1,3234.9,3.40257336]
[1767717990371,3.46147887,3236.1,3235.0,0.42095734]
[1767717990567,0.37129841,3236.1,3235.0,0.42095734]
[1767717990880,0.0302,3236.1,3235.1,0.93050016]
[1767717991185,3.12036687,3236.1,3235.0,0.42095734]
[1767717991500,3.14094251,3236.1,3235.0,0.42095734]
[1767717991697,0.62309964,3236.0,3235.0,0.42095734]
[1767717991917,0.62309964,3236.0,3235.1,3.09109455]
[1767717992216,0.0302,3236.1,3235.1,6.1821891]
[1767717992708,0.0302,3236.1,3235.1,3.09109455]
[1767717993168,0.93578885,3237.0,3235.3,0.97333082]
[1767717993367,3.0902828,3237.0,3235.3,0.97333082]
[1767717993584,0.001,3237.0,3235.3,0.97333082]
[1767717993788,0.001,3237.0,3235.5,0.97333082]
[1767717993977,0.001,3237.0,3235.6,9.27185064]
[1767717994798,0.95636449,3237.0,3235.6,3.09061688]
[1767717995189,0.93578885,3237.0,3235.6,6.18123376]
[1767717995394,0.02057564,3236.9,3235.6,6.18123376]
[1767717995689,0.02057564,3236.9,3235.6,6.89786044]
[1767717995886,0.001,3237.0,3235.6,6.89786044]
[1767717996069,0.001,3237.0,3235.6,7.87119126]
[1767717997172,0.001,3235.8,3235.6,0.71662668]
[1767717997399,0.001,3235.8,3235.4,0.17803308]
[1767717997601,0.02057564,3236.8,3235.6,6.18122517]
[1767717997807,0.02157564,3237.0,3235.6,6.18122517]
[1767717998027,0.06060459,3236.9,3235.6,6.18122517]
[1767717998169,3.08947108,3236.8,3235.5,6.1814248]
[1767717998368,0.31500757,3236.7,3235.5,6.89807059]
[1767717998569,0.93478885,3236.6,3235.2,0.002]
[1767717998809,0.93478885,3236.4,3235.2,0.002]
[1767717999009,0.95536449,3236.3,3235.2,0.002]
[1767717999301,0.95536449,3236.3,3235.2,3.09294187]
[1767717999499,0.06060459,3236.5,3235.4,3.09077403]
[1767717999704,0.06060459,3236.5,3235.5,0.97333082]
[1767718000271,0.06060459,3236.5,3235.6,6.18123376]
[1767718000471,0.06060459,3236.5,3235.6,9.27185064]
[1767718001274,0.06060459,3236.5,3235.6,6.18123376]
[1767718001475,0.06060459,3236.5,3235.6,6.98823376]
[1767718001780,6.24017481,3236.5,3235.3,3.09090154]
[1767718001985,3.15036204,3236.5,3235.3,3.09089723]
[1767718002188,0.06060459,3236.5,3235.5,3.09070122]
[1767718002391,0.39523044,3236.4,3235.2,0.002]
[1767718003510,3.48509185,3236.4,3235.2,0.97533082]
[1767718003816,0.06060459,3236.5,3235.2,0.97533082]
[1767718004319,0.001,3237.0,3235.8,0.97333082]
[1767718004603,0.001,3237.4,3236.0,0.97333082]
[1767718004974,0.001,3237.4,3236.1,0.807]
[1767718005206,0.001,3237.4,3236.2,1.1513639]
[1767718005778,0.001,3237.4,3236.2,1.17542628]
[1767718005991,0.001,3237.4,3236.2,1.1513639]
[1767718006388,0.001,3237.4,3236.3,6.17989678]
[1767718007202,0.001,3237.4,3236.3,3.08994839]
[1767718007421,0.001,3237.4,3236.3,3.82307652]
[1767718007613,0.001,3237.4,3236.3,6.91302491]
[1767718008202,0.001,3237.4,3236.3,3.82307652]
[1767718008409,0.001,3237.4,3236.3,4.63007652]
[1767718008705,0.001,3237.4,3236.3,7.72002491]
[1767718008907,0.001,3237.1,3236.4,0.86933557]
[1767718009135,0.001,3237.1,3236.4,1.84266639]
[1767718009436,0.001,3237.1,3236.5,0.0156572]
[1767718009636,0.001,3237.4,3236.5,0.0156572]
[1767718009934,0.001,3237.4,3236.6,0.18583236]
[1767718010736,0.001,3237.4,3236.6,3.27540763]
[1767718011230,0.001,3237.4,3236.6,7.33840044]
[1767718011623,0.24399817,3237.8,3236.7,0.97333082]
[1767718011938,0.24399817,3237.8,3236.8,1.78033082]
[1767718012104,0.24399817,3237.8,3236.9,1.1513639]
[1767718012307,0.001,3238.2,3236.9,1.1513639]
[1767718012523,0.20658628,3238.1,3236.9,1.1513639]
[1767718012734,4.82417358,3239.0,3237.1,0.97333082]
[1767718013148,0.93478885,3238.6,3236.6,0.18583236]
[1767718013443,0.93478885,3238.2,3236.3,0.97333082]
[1767718013736,0.93478885,3238.0,3236.3,0.97333082]
[1767718013934,0.93478885,3238.0,3236.7,3.08950763]
[1767718014240,0.17573645,3237.9,3236.7,3.08956221]
[1767718014439,1.1105253,3237.9,3236.7,3.08956221]
[1767718014940,0.17573645,3237.9,3236.6,6.98631257]
[1767718015114,3.91085897,3238.1,3236.7,0.97333082]
[1767718015441,7.13193115,3238.1,3236.6,6.98631257]
[1767718015737,7.11135551,3238.1,3236.6,6.98631257]
[1767718016241,3.08828333,3238.1,3236.7,0.97333082]
[1767718016440,7.13193115,3238.1,3236.6,6.98631257]
[1767718016638,0.71319311,3238.0,3236.6,7.68494383]
[1767718016840,0.02057564,3237.9,3236.6,7.68494383]
[1767718017021,0.02057564,3237.9,3236.6,4.59528184]
[1767718017022,3.08851689,3237.8,3236.6,4.59528184]
[1767718017220,0.02057564,3237.7,3236.6,4.59528184]
[1767718017439,0.02057564,3237.8,3236.6,7.68494383]
[1767718017640,0.71163554,3237.8,3236.6,7.68494383]
[1767718017937,0.02057564,3237.9,3236.6,7.68494383]
[1767718018140,0.02057564,3237.9,3236.7,0.99213645]
[1767718018508,0.802,3238.3,3236.7,0.99213645]
[1767718019118,0.20652385,3238.5,3236.9,0.99213645]
[1767718019522,0.20652385,3238.5,3237.1,0.99213645]
[1767718019744,0.20652385,3238.5,3237.3,0.99213645]
[1767718020645,0.93945912,3238.4,3236.9,0.002]
[1767718020847,0.93945912,3238.4,3236.5,0.002]
[1767718020848,0.91888348,3238.2,3236.5,0.002]
[1767718021057,0.91888348,3237.7,3236.5,0.002]
[1767718021219,0.91888348,3237.5,3235.7,7.17213797]
[1767718021625,0.91888348,3237.5,3235.6,3.09060976]
[1767718021813,1.03901905,3237.6,3235.7,3.09050476]
[1767718021814,0.95816728,3237.3,3235.7,3.09050476]
[1767718022250,0.95816728,3237.3,3235.6,3.09056025]
[1767718022460,0.95816728,3237.1,3235.3,0.002]
[1767718022625,0.96745348,3237.1,3235.3,0.002]
[1767718023028,0.95816728,3236.9,3235.7,0.04899897]
[1767718023322,0.0092862,3237.1,3235.7,6.22998888]
[1767718023323,0.95816728,3236.8,3235.7,6.22998888]
[1767718023552,0.95816728,3237.0,3235.8,0.62299889]
[1767718024351,0.95816728,3237.0,3235.7,0.04899897]
[1767718024528,0.95816728,3236.8,3235.3,0.002]
[1767718024720,0.0092862,3236.9,3235.0,3.09112438]
[1767718024721,0.04899897,3235.7,3235.0,3.09112438]
[1767718024963,0.04899897,3235.7,3234.9,0.002]
[1767718025661,3.08956969,3236.7,3235.0,0.807]
[1767718025827,0.96745348,3237.5,3235.1,0.98418167]
[1767718026023,0.95816728,3237.5,3235.4,0.97489547]
[1767718026338,0.95816728,3237.5,3235.8,0.97489547]
[1767718026533,0.95816728,3237.5,3235.9,0.8379033]
[1767718026739,3.08869581,3237.7,3235.9,1.81279877]
[1767718026935,3.08869581,3237.7,3236.0,0.97489547]
[1767718027154,0.38906958,3237.6,3236.1,0.21218127]
[1767718027355,0.38906958,3237.6,3236.2,10.24502708]
[1767718027565,0.802,3237.8,3236.3,0.97489547]
[1767718027747,0.02057564,3238.4,3236.3,0.97489547]
[1767718028058,4.25255589,3238.5,3236.5,0.97489547]
[1767718028231,4.25255589,3238.5,3236.4,0.0092862]
[1767718028232,0.20652385,3238.5,3237.0,0.0092862]
[1767718028555,1e-08,3238.5,3237.3,0.0092862]
[1767718028760,0.803,3239.1,3237.5,0.97489547]
[1767718028921,0.803,3239.1,3237.5,0.98418167]
[1767718029325,0.001,3239.1,3237.9,0.97489547]
[1767718029526,0.001,3239.4,3238.1,0.97489547]
[1767718029727,0.0092862,3242.0,3238.8,0.97489547]
[1767718029728,0.95816728,3241.0,3238.8,0.97489547]
[1767718029945,0.95816728,3241.0,3239.0,0.97489547]
[1767718030160,0.802,3241.1,3238.3,0.97489547]
[1767718030161,0.97874292,3240.9,3238.3,0.97489547]
[1767718030358,0.97874292,3240.9,3238.7,0.97489547]
[1767718030530,0.97874292,3240.9,3238.8,0.807]
[1767718031156,0.97874292,3240.9,3238.8,0.80500001]
[1767718031366,6.19189136,3240.8,3239.0,7.14964075]
[1767718031530,0.7355815,3240.7,3239.0,7.14964075]
[1767718031736,0.95816728,3240.6,3239.1,0.806]
[1767718031941,0.02057564,3240.5,3239.1,0.806]
[1767718032136,0.02057564,3240.5,3239.0,6.17474528]
[1767718032443,0.97874292,3240.6,3239.2,0.806]
[1767718032644,0.97874292,3240.6,3239.0,6.17474528]
[1767718032645,0.16937488,3240.5,3239.0,6.17474528]
[1767718032951,0.16937488,3240.5,3239.2,0.806]
[1767718033161,0.71500586,3240.7,3239.2,0.806]
[1767718033335,3.08584829,3240.6,3239.3,6.17417342]
[1767718033535,0.001,3240.7,3239.3,6.17417342]
[1767718033738,0.001,3240.7,3239.3,10.2361556]
[1767718033966,0.001,3240.7,3239.2,3.08715407]
[1767718034166,0.95816728,3240.6,3239.2,3.08717998]
[1767718034333,0.71306734,3240.5,3239.2,3.08717998]
[1767718034535,0.02057564,3240.4,3238.5,0.97489547]
[1767718034730,0.02057564,3240.4,3238.6,0.806]
[1767718034956,0.02057564,3240.4,3239.2,3.08717833]
[1767718035164,0.02057564,3240.4,3239.2,3.08709201]
[1767718035330,0.71306734,3240.5,3239.2,3.89309201]
[1767718035534,0.71306734,3240.5,3239.2,0.806]
[1767718035535,0.95816728,3240.5,3239.2,0.806]
[1767718035964,0.97874292,3240.4,3239.1,3.0872067]
[1767718036276,0.96745348,3239.2,3236.8,0.97489547]
[1767718036435,0.95816728,3239.0,3236.8,4.06435543]
[1767718036760,0.95816728,3238.8,3236.8,4.06435543]
[1767718036960,0.97874292,3238.7,3236.7,0.806]
[1767718037163,0.95816728,3238.7,3236.6,3.08958157]
[1767718037467,0.95816728,3238.5,3236.4,3.08980691]
[1767718037676,0.95816728,3238.5,3236.1,3.27133702]
[1767718037677,0.95816728,3238.3,3236.1,0.18127988]
[1767718037838,0.95816728,3238.0,3235.9,0.806]
[1767718038160,0.95816728,3237.8,3235.3,0.97489547]
[1767718038359,0.0092862,3237.9,3235.7,3.09051703]
[1767718038360,0.95816728,3237.6,3235.7,3.09051703]
[1767718038663,0.95816728,3237.6,3235.4,0.40658822]
[1767718038863,0.95816728,3237.6,3235.3,0.806]
[1767718039241,0.95816728,3237.4,3235.4,3.09080793]
[1767718039469,0.95816728,3237.4,3235.4,6.18161586]
[1767718040357,0.95816728,3237.4,3235.3,3.89689571]
[1767718040530,0.95816728,3237.4,3235.1,3.09102381]
[1767718040738,0.95816728,3237.2,3234.9,3.09326211]
[1767718040952,0.95816728,3237.2,3235.3,3.09081819]
[1767718041157,0.801,3237.1,3235.3,3.09081819]
[1767718041770,6.17856038,3237.0,3235.1,6.1821891]
[1767718041969,0.801,3236.9,3235.1,6.1821891]
[1767718042168,1.49895604,3236.9,3235.2,0.69881891]
[1767718043070,2.45712332,3236.9,3235.2,0.16187902]
[1767718043365,0.95816728,3236.8,3235.3,0.806]
[1767718043768,6.17913306,3236.7,3235.3,0.806]
[1767718044069,6.17913306,3236.7,3235.0,3.09118611]
[1767718044264,6.17913306,3236.7,3235.2,3.09097046]
[1767718044468,0.95816728,3236.3,3234.9,0.002]
[1767718044641,0.95816728,3236.1,3234.4,3.09174891]
[1767718044845,0.95816728,3236.1,3233.9,0.97489547]
[1767718045047,0.95816728,3236.1,3234.3,3.09183463]
[1767718045250,1.27993919,3236.0,3234.4,3.09176321]
[1767718045463,1.27993919,3236.0,3234.4,0.38977632]
[1767718045677,3.09042586,3235.8,3234.4,3.09176354]
[1767718046056,0.32177191,3235.7,3234.5,0.02947492]
[1767718046874,0.32177191,3235.7,3234.4,3.09176354]
[1767718047081,0.32177191,3235.7,3234.3,3.09184076]
[1767718047251,0.32177191,3235.7,3234.4,0.03091763]
[1767718047451,0.32177191,3235.7,3234.3,6.18369989]
[1767718047452,0.32177191,3235.7,3234.5,0.62146175]
[1767718047658,0.32177191,3235.7,3234.5,3.71303885]
[1767718047953,0.32177191,3235.7,3234.6,0.97489547]
[1767718048353,0.32177191,3235.7,3234.7,1.00581023]
[1767718048767,0.32177191,3235.7,3234.7,0.97489547]
[1767718049280,0.32177191,3235.7,3234.5,7.6107068]
[1767718049589,0.32177191,3235.7,3234.6,0.76107068]
[1767718049756,0.32177191,3235.7,3234.7,6.18295358]
[1767718050863,0.32177191,3235.7,3234.8,0.98761516]
[1767718051063,0.32177191,3235.7,3234.8,1.00580928]
[1767718051369,0.32177191,3235.7,3234.7,6.18295358]
[1767718051370,0.32177191,3235.7,3234.7,3.09147679]
[1767718051569,3.75351631,3235.7,3234.6,3.85258538]
[1767718051776,0.66299125,3235.7,3234.6,3.0915147]
[1767718051971,0.32177191,3235.6,3234.6,6.21400279]
[1767718052781,6.17932398,3236.6,3234.7,0.94880465]
[1767718052983,0.02057564,3236.5,3234.8,0.94880465]
[1767718053307,0.70018996,3236.4,3234.8,0.94880465]
[1767718053611,0.95767239,3236.3,3234.6,5.86131516]
[1767718053758,0.95767239,3236.3,3234.6,0.807]
[1767718053958,0.93709675,3236.1,3234.6,3.89856878]
[1767718054159,1.84329848,3236.0,3234.7,0.38985688]
[1767718054357,0.93709675,3235.9,3234.4,3.09175433]
[1767718054566,0.93709675,3235.8,3234.3,0.807]
[1767718054771,1.02072284,3236.0,3234.6,7.13186659]
[1767718054965,0.802,3236.2,3234.7,0.03091476]
[1767718055188,3.09039335,3236.9,3234.7,0.94880465]
[1767718055189,0.001,3236.9,3234.7,0.94880465]
[1767718055374,6.17894216,3236.8,3234.7,0.95809085]
[1767718055689,0.02057564,3236.7,3234.9,0.94880465]
[1767718055890,0.17504264,3236.7,3234.9,0.94880465]
[1767718056091,6.17932398,3236.6,3235.0,4.21557522]
[1767718056302,0.95767239,3236.5,3235.0,3.91930357]
[1767718056484,0.93709675,3236.3,3235.0,0.807]
[1767718056679,0.02057564,3236.2,3235.0,0.807]
[1767718056984,0.02057564,3236.1,3234.9,3.09123122]
[1767718057375,0.02057564,3236.1,3234.9,3.09323122]
[1767718057575,9.39255957,3236.6,3234.9,3.09323122]
[1767718057576,0.802,3236.5,3234.9,6.09185613]
[1767718057884,0.93709675,3236.3,3235.0,0.60918561]
[1767718058092,6.20066338,3236.2,3234.9,2.96965762]
[1767718058401,6.20066338,3236.2,3234.9,0.002]
[1767718058899,1.14723053,3236.1,3234.9,0.002]
[1767718059401,0.09885888,3236.0,3234.9,0.002]
[1767718059918,1.05653127,3236.0,3234.9,0.002]
[1767718060101,10.2080878,3235.9,3234.9,0.00099897]
[1767718060274,1.85532787,3235.8,3234.9,0.00099897]